[Event "Sunway Sitges Chess Festival"]
[Date "2024.12.21"]
[White "Li, Di"]
[Black "Alexiadis, Hristos"]
[WhiteElo "2440"]
[BlackElo "2341"]
[Round "7.8"]
[Result "1-0"]
[TimeControl "40/5400+30:1800+30"]

1. e4 {[%clk 1:30:52]} 1... c5 {[%clk 1:26:10]} 2. c4 {[%clk 1:31:06]} 2... Nc6
{[%clk 1:25:36]} 3. Nc3 {[%clk 1:31:31]} 3... g6 {[%clk 1:25:38]} 4. g3 {[%clk
1:31:55]} 4... Bg7 {[%clk 1:26:01]} 5. Bg2 {[%clk 1:32:20]} 5... Nf6 {[%clk
1:24:49]} 6. Nge2 {[%clk 1:32:35]} 6... O-O {[%clk 1:23:22]} 7. d3 {[%clk
1:32:53]} 7... d6 {[%clk 1:23:02]} 8. O-O {[%clk 1:33:00]} 8... Qd7 {[%clk
1:20:14]} 9. h3 {[%clk 1:32:21]} 9... b6 {[%clk 1:18:08]} 10. Be3 {[%clk
1:32:16]} 10... Bb7 {[%clk 1:16:56]} 11. Rb1 {[%clk 1:25:49]} 11... Rac8 {[%clk
1:09:03]} 12. a3 {[%clk 1:23:49]} 12... e6 {[%clk 1:08:11]} 13. b4 {[%clk
1:19:53]} 13... Ne8 {[%clk 0:44:32]} 14. Qa4 {[%clk 1:06:02]} 14... Qe7 {[%clk
0:33:41]} 15. Rfe1 {[%clk 0:52:29]} 15... Ba8 {[%clk 0:29:26]} 16. Nb5 {[%clk
0:51:01]} 16... h5 {[%clk 0:26:00]} 17. f4 {[%clk 0:44:42]} 17... d5 {[%clk
0:14:49]} 18. exd5 {[%clk 0:42:04]} 18... exd5 {[%clk 0:15:11]} 19. Nec3 {[%clk
0:39:33]} 19... d4 {[%clk 0:11:34]} 20. Bxd4 {[%clk 0:38:08]} 20... Bxd4+ {[%clk
0:11:58]} 21. Nxd4 {[%clk 0:38:29]} 21... Qf6 {[%clk 0:12:08]} 22. Nxc6 {[%clk
0:20:18]} 22... Bxc6 {[%clk 0:12:32]} 23. Bxc6 {[%clk 0:20:46]} 23... Rxc6
{[%clk 0:12:09]} 24. Re5 {[%clk 0:19:42]} 24... Re6 {[%clk 0:11:16]} 25. Nd5
{[%clk 0:19:50]} 25... Qd8 {[%clk 0:11:12]} 26. Rbe1 {[%clk 0:19:04]} 26... Rxe5
{[%clk 0:08:26]} 27. Rxe5 {[%clk 0:19:29]} 27... Nf6 {[%clk 0:08:44]} 28. Qc6
{[%clk 0:09:55]} 28... Nxd5 {[%clk 0:08:36]} 29. cxd5 {[%clk 0:10:22]} 29...
cxb4 {[%clk 0:08:57]} 30. axb4 {[%clk 0:10:50]} 30... Qb8 {[%clk 0:07:37]} 31.
d6 {[%clk 0:08:57]} 31... Rc8 {[%clk 0:07:40]} 32. d7 {[%clk 0:08:55]} 1-0

[Variant "Standard"]
[Site "Europe Echecs"]

[Event "Sunway Sitges Chess Festival"]
[Date "2024.12.21"]
[White "Lopez Martinez, Josep Manuel"]
[Black "Adharsh K"]
[WhiteElo "2455"]
[BlackElo "2235"]
[Round "7.9"]
[Result "1-0"]
[TimeControl "40/5400+30:1800+30"]

1. d4 {[%clk 1:24:52]} 1... Nf6 {[%clk 1:30:49]} 2. c4 {[%clk 1:24:53]} 2... g6
{[%clk 1:30:56]} 3. Nc3 {[%clk 1:24:54]} 3... Bg7 {[%clk 1:31:11]} 4. e4 {[%clk
1:24:43]} 4... d6 {[%clk 1:31:30]} 5. h3 {[%clk 1:24:49]} 5... O-O {[%clk
1:31:44]} 6. Bg5 {[%clk 1:23:27]} 6... c5 {[%clk 1:31:51]} 7. d5 {[%clk
1:23:31]} 7... e6 {[%clk 1:32:04]} 8. Bd3 {[%clk 1:21:48]} 8... exd5 {[%clk
1:32:13]} 9. exd5 {[%clk 1:20:42]} 9... Re8+ {[%clk 1:32:29]} 10. Nge2 {[%clk
1:21:03]} 10... a6 {[%clk 1:18:42]} 11. O-O {[%clk 1:14:50]} 11... b5 {[%clk
1:08:04]} 12. cxb5 {[%clk 1:13:58]} 12... Nbd7 {[%clk 1:06:08]} 13. f4 {[%clk
1:11:13]} 13... Qb6 {[%clk 1:01:56]} 14. Kh1 {[%clk 1:11:22]} 14... h6 {[%clk
0:52:58]} 15. Bh4 {[%clk 1:07:50]} 15... Bb7 {[%clk 0:52:33]} 16. a4 {[%clk
0:55:01]} 16... Nxd5 {[%clk 0:44:55]} 17. Nxd5 {[%clk 0:55:15]} 17... Bxd5
{[%clk 0:45:21]} 18. Nc3 {[%clk 0:55:37]} 18... Qb7 {[%clk 0:31:56]} 19. Qd2
{[%clk 0:47:01]} 19... c4 {[%clk 0:26:37]} 20. Bc2 {[%clk 0:47:24]} 20... Bxc3
{[%clk 0:26:42]} 21. bxc3 {[%clk 0:47:49]} 21... axb5 {[%clk 0:26:17]} 22. f5
{[%clk 0:47:12]} 22... g5 {[%clk 0:26:39]} 23. Bg3 {[%clk 0:42:15]} 23... Nf6
{[%clk 0:20:53]} 24. Rab1 {[%clk 0:41:37]} 24... Be4 {[%clk 0:20:07]} 25. Rxb5
{[%clk 0:36:58]} 25... Qc6 {[%clk 0:20:29]} 26. Kh2 {[%clk 0:27:38]} 26... Bxc2
{[%clk 0:20:12]} 27. Qxc2 {[%clk 0:28:01]} 27... Rad8 {[%clk 0:02:54]} 28. Qf2
{[%clk 0:22:21]} 28... Qe4 {[%clk 0:02:27]} 29. Rd1 {[%clk 0:21:32]} 29... d5
{[%clk 0:01:27]} 30. Rb6 {[%clk 0:20:46]} 30... Kg7 {[%clk 0:01:50]} 31. a5
{[%clk 0:20:05]} 31... Nh5 {[%clk 0:00:42]} 32. Rd4 {[%clk 0:09:32]} 32... Qe3
{[%clk 0:00:46]} 33. Qxe3 {[%clk 0:09:46]} 33... Rxe3 {[%clk 0:01:14]} 34. Bc7
{[%clk 0:10:05]} 34... Rde8 {[%clk 0:00:48]} 35. Rxd5 {[%clk 0:09:25]} 35... Re1
{[%clk 0:00:56]} 36. a6 {[%clk 0:09:17]} 36... Ra1 {[%clk 0:01:17]} 37. Re5
{[%clk 0:08:34]} 37... Ra8 {[%clk 0:01:13]} 38. Re7 {[%clk 0:06:10]} 38... R1xa6
{[%clk 0:00:52]} 39. Be5+ {[%clk 0:06:10]} 39... Kh7 {[%clk 0:00:45]} 40. Rxf7+
{[%clk 0:35:50]} 40... Kg8 {[%clk 0:31:47]} 41. Rbb7 {[%clk 0:36:12]} 41... Rb6
{[%clk 0:30:45]} 42. Rbc7 {[%clk 0:34:25]} 42... Re8 {[%clk 0:29:49]} 43. Bd4
{[%clk 0:34:12]} 43... Ra6 {[%clk 0:30:03]} 44. Rh7 {[%clk 0:34:14]} 44... Nf6
{[%clk 0:30:30]} 45. Rcg7+ {[%clk 0:34:19]} 1-0

[Variant "Standard"]
[Site "Europe Echecs"]

[Event "Sunway Sitges Chess Festival"]
[Date "2024.12.21"]
[White "kiladze, Luka"]
[Black "Gavrilescu, David"]
[WhiteElo "2359"]
[BlackElo "2549"]
[Round "7.10"]
[Result "0-1"]
[TimeControl "40/5400+30:1800+30"]

1. d4 {[%clk 1:30:58]} 1... Nf6 {[%clk 1:30:10]} 2. Nf3 {[%clk 1:31:22]} 2... e6
{[%clk 1:30:04]} 3. Bf4 {[%clk 1:31:47]} 3... Be7 {[%clk 1:29:57]} 4. Nbd2
{[%clk 1:31:13]} 4... Nh5 {[%clk 1:26:39]} 5. Bg3 {[%clk 1:28:49]} 5... d6
{[%clk 1:22:08]} 6. e4 {[%clk 1:24:46]} 6... O-O {[%clk 1:05:17]} 7. Bd3 {[%clk
1:16:34]} 7... f5 {[%clk 0:52:11]} 8. h4 {[%clk 1:12:43]} 8... Nxg3 {[%clk
0:45:54]} 9. fxg3 {[%clk 1:12:51]} 9... Nd7 {[%clk 0:44:59]} 10. Qe2 {[%clk
1:04:59]} 10... Nf6 {[%clk 0:42:34]} 11. Ng5 {[%clk 1:00:44]} 11... d5 {[%clk
0:39:03]} 12. exf5 {[%clk 0:56:06]} 12... exf5 {[%clk 0:39:23]} 13. Ne6 {[%clk
0:53:51]} 13... Bxe6 {[%clk 0:35:48]} 14. Qxe6+ {[%clk 0:54:16]} 14... Kh8
{[%clk 0:36:13]} 15. Qxf5 {[%clk 0:24:59]} 15... Ne4 {[%clk 0:33:14]} 16. Qh5
{[%clk 0:15:15]} 16... Qd6 {[%clk 0:19:17]} 17. Nxe4 {[%clk 0:18:57]} 17... dxe4
{[%clk 0:19:38]} 18. Bxe4 {[%clk 0:19:25]} 18... Qxg3+ {[%clk 0:19:59]} 19. Kd1
{[%clk 0:19:50]} 19... h6 {[%clk 0:15:28]} 20. Qg6 {[%clk 0:18:42]} 20... Qxg6
{[%clk 0:15:52]} 21. Bxg6 {[%clk 0:19:07]} 21... Bxh4 {[%clk 0:16:05]} 22. Bd3
{[%clk 0:10:53]} 22... Bg5 {[%clk 0:13:03]} 23. Rf1 {[%clk 0:08:45]} 23... Rfd8
{[%clk 0:11:21]} 24. c3 {[%clk 0:06:23]} 24... c5 {[%clk 0:11:45]} 25. Kc2
{[%clk 0:06:50]} 25... cxd4 {[%clk 0:12:09]} 26. c4 {[%clk 0:07:18]} 26... Bf6
{[%clk 0:09:44]} 27. b4 {[%clk 0:05:21]} 27... Re8 {[%clk 0:05:14]} 28. Rf5
{[%clk 0:02:51]} 28... Re3 {[%clk 0:04:39]} 29. Raf1 {[%clk 0:03:08]} 29... Rae8
{[%clk 0:04:48]} 30. Rd5 {[%clk 0:03:23]} 30... Kg8 {[%clk 0:03:02]} 31. Rd7
{[%clk 0:02:03]} 31... R3e7 {[%clk 0:01:10]} 32. Rxe7 {[%clk 0:01:49]} 32...
Rxe7 {[%clk 0:01:39]} 33. c5 {[%clk 0:01:50]} 33... Kf7 {[%clk 0:01:14]} 34. Kb3
{[%clk 0:00:52]} 34... Re3 {[%clk 0:01:35]} 35. Rd1 {[%clk 0:00:34]} 35... Ke6
{[%clk 0:01:27]} 36. Kc4 {[%clk 0:01:00]} 36... h5 {[%clk 0:01:22]} 37. b5
{[%clk 0:00:39]} 37... h4 {[%clk 0:01:02]} 38. Rf1 {[%clk 0:00:35]} 38... Re5
{[%clk 0:00:49]} 39. Rf4 {[%clk 0:00:34]} 39... b6 {[%clk 0:00:33]} 40. Re4
{[%clk 0:30:31]} 40... bxc5 {[%clk 0:30:32]} 41. Rxe5+ {[%clk 0:31:00]} 41...
Kxe5 {[%clk 0:29:29]} 42. Kxc5 {[%clk 0:31:20]} 42... g5 {[%clk 0:24:00]} 43.
Kc4 {[%clk 0:25:03]} 43... g4 {[%clk 0:21:17]} 44. Be2 {[%clk 0:17:36]} 44... h3
{[%clk 0:19:04]} 45. gxh3 {[%clk 0:17:58]} 45... g3 {[%clk 0:19:22]} 46. Bf1
{[%clk 0:17:23]} 46... Ke4 {[%clk 0:19:46]} 47. a4 {[%clk 0:17:40]} 47... Ke3
{[%clk 0:17:19]} 48. a5 {[%clk 0:17:37]} 48... d3 {[%clk 0:17:22]} 49. b6 {[%clk
0:18:04]} 49... axb6 {[%clk 0:17:09]} 50. a6 {[%clk 0:18:22]} 50... b5+ {[%clk
0:17:36]} 51. Kb3 {[%clk 0:18:44]} 51... Bd4 {[%clk 0:18:01]} 52. h4 {[%clk
0:19:11]} 52... Kf2 {[%clk 0:18:22]} 0-1

[Variant "Standard"]
[Site "Europe Echecs"]

[Event "Sunway Sitges Chess Festival"]
[Date "2024.12.21"]
[White "Naoum, Spyridon"]
[Black "Gholami Orimi, Mahdi"]
[WhiteElo "2338"]
[BlackElo "2402"]
[Round "7.11"]
[Result "0-1"]
[TimeControl "40/5400+30:1800+30"]

1. d4 {[%clk 1:30:25]} 1... Nf6 {[%clk 1:30:48]} 2. c4 {[%clk 1:30:50]} 2... e6
{[%clk 1:31:12]} 3. Nc3 {[%clk 1:30:48]} 3... Bb4 {[%clk 1:31:32]} 4. f3 {[%clk
1:31:10]} 4... d5 {[%clk 1:31:53]} 5. a3 {[%clk 1:31:24]} 5... Bxc3+ {[%clk
1:32:13]} 6. bxc3 {[%clk 1:31:52]} 6... c6 {[%clk 1:32:32]} 7. e4 {[%clk
1:30:38]} 7... dxe4 {[%clk 1:32:52]} 8. fxe4 {[%clk 1:30:26]} 8... e5 {[%clk
1:33:20]} 9. Nf3 {[%clk 1:17:37]} 9... Bg4 {[%clk 1:33:28]} 10. Bd3 {[%clk
1:08:47]} 10... exd4 {[%clk 1:32:53]} 11. e5 {[%clk 1:03:26]} 11... Nfd7 {[%clk
1:33:11]} 12. e6 {[%clk 0:41:01]} 12... fxe6 {[%clk 1:27:18]} 13. cxd4 {[%clk
0:36:46]} 13... Bxf3 {[%clk 1:26:03]} 14. Qxf3 {[%clk 0:37:14]} 14... Qh4+
{[%clk 1:26:19]} 15. Qf2 {[%clk 0:22:46]} 15... Qxf2+ {[%clk 1:26:25]} 16. Kxf2
{[%clk 0:23:16]} 16... c5 {[%clk 1:13:10]} 17. d5 {[%clk 0:23:28]} 17... O-O+
{[%clk 1:11:53]} 18. Kg3 {[%clk 0:23:55]} 18... exd5 {[%clk 1:04:59]} 19. cxd5
{[%clk 0:23:43]} 19... Ne5 {[%clk 1:04:25]} 20. Be4 {[%clk 0:23:02]} 20... Nbd7
{[%clk 1:04:53]} 21. d6 {[%clk 0:23:13]} 21... Nf6 {[%clk 0:47:58]} 22. Re1
{[%clk 0:23:23]} 22... Nxe4+ {[%clk 0:37:18]} 23. Rxe4 {[%clk 0:23:51]} 23...
Nf7 {[%clk 0:36:24]} 24. Bf4 {[%clk 0:21:02]} 24... Rad8 {[%clk 0:32:36]} 25.
Rae1 {[%clk 0:11:25]} 25... Nxd6 {[%clk 0:24:50]} 26. Bxd6 {[%clk 0:11:49]}
26... Rxd6 {[%clk 0:25:18]} 27. Re7 {[%clk 0:12:15]} 27... Rd3+ {[%clk 0:24:04]}
28. Kh4 {[%clk 0:12:05]} 28... h6 {[%clk 0:14:23]} 29. Rxb7 {[%clk 0:06:36]}
29... Rf2 {[%clk 0:14:17]} 30. Rg1 {[%clk 0:07:06]} 30... Rxa3 {[%clk 0:14:07]}
31. Rc7 {[%clk 0:07:32]} 31... Kh7 {[%clk 0:10:21]} 32. h3 {[%clk 0:02:44]}
32... a5 {[%clk 0:07:15]} 33. g3 {[%clk 0:02:28]} 33... Rc2 {[%clk 0:07:02]} 34.
Kh5 {[%clk 0:01:13]} 34... Rd3 {[%clk 0:06:37]} 35. Ra7 {[%clk 0:00:35]} 35...
Rc4 {[%clk 0:06:29]} 0-1

[Variant "Standard"]
[Site "Europe Echecs"]

[Event "Sunway Sitges Chess Festival"]
[Date "2024.12.21"]
[White "Alinasab, Mobina"]
[Black "Atanasov, Anthony"]
[WhiteElo "2330"]
[BlackElo "2415"]
[Round "7.12"]
[Result "1/2-1/2"]
[TimeControl "40/5400+30:1800+30"]

1. e4 {[%clk 1:30:52]} 1... e5 {[%clk 1:27:54]} 2. Nf3 {[%clk 1:30:36]} 2... Nf6
{[%clk 1:28:07]} 3. Nc3 {[%clk 1:30:58]} 3... Nc6 {[%clk 1:28:29]} 4. Nd5 {[%clk
1:31:21]} 4... Nxd5 {[%clk 1:25:32]} 5. exd5 {[%clk 1:31:40]} 5... Nd4 {[%clk
1:26:00]} 6. Nxd4 {[%clk 1:31:51]} 6... exd4 {[%clk 1:26:27]} 7. Qe2+ {[%clk
1:32:09]} 7... Qe7 {[%clk 1:26:25]} 8. b3 {[%clk 1:32:27]} 8... b6 {[%clk
1:13:01]} 9. Bb2 {[%clk 1:32:23]} 9... Qxe2+ {[%clk 1:12:22]} 10. Bxe2 {[%clk
1:32:06]} 10... Bb7 {[%clk 1:12:50]} 11. Bf3 {[%clk 1:10:18]} 11... Bc5 {[%clk
1:12:59]} 12. O-O {[%clk 1:03:17]} 12... f6 {[%clk 1:08:36]} 13. Rfe1+ {[%clk
0:42:23]} 13... Kf7 {[%clk 1:07:43]} 14. Kf1 {[%clk 0:37:23]} 14... a5 {[%clk
1:00:11]} 15. a3 {[%clk 0:36:16]} 15... Ba6+ {[%clk 0:47:11]} 16. d3 {[%clk
0:24:34]} 16... Bb7 {[%clk 0:43:30]} 17. Re2 {[%clk 0:23:04]} 17... b5 {[%clk
0:25:19]} 18. Rae1 {[%clk 0:19:29]} 18... Rab8 {[%clk 0:23:54]} 19. Bc1 {[%clk
0:05:32]} 19... Rbe8 {[%clk 0:18:12]} 20. Bg4 {[%clk 0:01:51]} 20... Rxe2 {[%clk
0:18:24]} 21. Rxe2 {[%clk 0:02:19]} 21... Bc8 {[%clk 0:08:39]} 22. Bd2 {[%clk
0:02:11]} 22... Bxa3 {[%clk 0:06:34]} 23. Bxa5 {[%clk 0:02:33]} 23... Bd6 {[%clk
0:07:03]} 24. Bd2 {[%clk 0:01:17]} 24... g6 {[%clk 0:07:08]} 25. Re1 {[%clk
0:00:45]} 25... f5 {[%clk 0:06:57]} 26. Bf3 {[%clk 0:01:09]} 26... Bb7 {[%clk
0:07:21]} 27. Ra1 {[%clk 0:01:17]} 27... Ra8 {[%clk 0:07:49]} 28. Rxa8 {[%clk
0:01:11]} 28... Bxa8 {[%clk 0:08:18]} 29. Bg5 {[%clk 0:01:32]} 29... Kg7 {[%clk
0:05:10]} 30. g3 {[%clk 0:00:35]} 30... h6 {[%clk 0:05:06]} 31. Bc1 {[%clk
0:00:48]} 31... g5 {[%clk 0:04:37]} 32. Ke2 {[%clk 0:00:38]} 32... Kf6 {[%clk
0:05:00]} 33. Bg2 {[%clk 0:00:45]} 33... Bc5 {[%clk 0:03:08]} 34. h3 {[%clk
0:00:36]} 34... Bb7 {[%clk 0:02:28]} 35. Bh1 {[%clk 0:00:39]} 35... Bc8 {[%clk
0:01:27]} 36. Bg2 {[%clk 0:00:-25]} 36... Be7 {[%clk 0:00:41]} 37. Bh1 {[%clk
0:00:44]} 37... b4 {[%clk 0:00:45]} 38. Bd2 {[%clk 0:00:47]} 38... Bc5 {[%clk
0:00:35]} 39. Bg2 {[%clk 0:00:58]} 39... Bb7 {[%clk 0:00:34]} 1/2-1/2

[Variant "Standard"]
[Site "Europe Echecs"]

[Event "Sunway Sitges Chess Festival"]
[Date "2024.12.21"]
[White "Kristoferitsch, Daniel"]
[Black "Diaz Rosas, Julio Cesar"]
[WhiteElo "2287"]
[BlackElo "2401"]
[Round "7.13"]
[Result "1-0"]
[TimeControl "40/5400+30:1800+30"]

1. d4 {[%clk 1:30:45]} 1... Nf6 {[%clk 1:30:30]} 2. c4 {[%clk 1:31:08]} 2... e6
{[%clk 1:30:39]} 3. Nc3 {[%clk 1:31:30]} 3... d5 {[%clk 1:30:57]} 4. cxd5 {[%clk
1:31:52]} 4... exd5 {[%clk 1:31:20]} 5. Bg5 {[%clk 1:32:15]} 5... Bb4 {[%clk
1:31:34]} 6. e3 {[%clk 1:32:24]} 6... h6 {[%clk 1:31:56]} 7. Bh4 {[%clk
1:32:47]} 7... g5 {[%clk 1:32:17]} 8. Bg3 {[%clk 1:33:10]} 8... Ne4 {[%clk
1:32:19]} 9. Ne2 {[%clk 1:29:22]} 9... h5 {[%clk 1:32:13]} 10. h4 {[%clk
1:29:44]} 10... Bg4 {[%clk 1:32:12]} 11. Qb3 {[%clk 1:27:50]} 11... Nc6 {[%clk
1:30:20]} 12. Bh2 {[%clk 1:19:09]} 12... Be6 {[%clk 0:57:13]} 13. hxg5 {[%clk
1:10:13]} 13... Qxg5 {[%clk 0:53:41]} 14. Bxc7 {[%clk 1:07:16]} 14... Qe7 {[%clk
0:44:17]} 15. Bf4 {[%clk 1:05:21]} 15... Na5 {[%clk 0:44:39]} 16. Qc2 {[%clk
0:58:31]} 16... Bf5 {[%clk 0:43:44]} 17. a3 {[%clk 0:52:29]} 17... Nc6 {[%clk
0:22:36]} 18. axb4 {[%clk 0:33:42]} 18... Nxb4 {[%clk 0:22:25]} 19. Qd1 {[%clk
0:34:02]} 19... Rc8 {[%clk 0:22:18]} 20. Rc1 {[%clk 0:30:50]} 20... O-O {[%clk
0:15:02]} 21. Ng3 {[%clk 0:28:59]} 21... Bg4 {[%clk 0:08:15]} 22. Be2 {[%clk
0:25:27]} 22... Nxc3 {[%clk 0:08:42]} 23. bxc3 {[%clk 0:25:11]} 23... Na2 {[%clk
0:09:10]} 24. Bxg4 {[%clk 0:24:10]} 24... Rxc3 {[%clk 0:09:21]} 25. Rxc3 {[%clk
0:21:15]} 25... Nxc3 {[%clk 0:09:49]} 26. Qb3 {[%clk 0:16:17]} 1-0

[Variant "Standard"]
[Site "Europe Echecs"]

[Event "Sunway Sitges Chess Festival"]
[Date "2024.12.21"]
[White "Liu, Yi"]
[Black "Aloma Vidal, Robert"]
[WhiteElo "2261"]
[BlackElo "2398"]
[Round "7.14"]
[Result "0-1"]
[TimeControl "40/5400+30:1800+30"]

1. d4 {[%clk 1:29:34]} 1... Nf6 {[%clk 1:30:54]} 2. c4 {[%clk 1:30:01]} 2... d6
{[%clk 1:31:19]} 3. Nf3 {[%clk 1:28:40]} 3... g6 {[%clk 1:31:04]} 4. e3 {[%clk
1:26:09]} 4... Bg7 {[%clk 1:31:20]} 5. Be2 {[%clk 1:26:36]} 5... O-O {[%clk
1:31:29]} 6. O-O {[%clk 1:26:59]} 6... c5 {[%clk 1:29:53]} 7. Nc3 {[%clk
1:26:46]} 7... cxd4 {[%clk 1:27:24]} 8. exd4 {[%clk 1:26:50]} 8... d5 {[%clk
1:27:34]} 9. h3 {[%clk 1:24:31]} 9... Nc6 {[%clk 1:23:43]} 10. a3 {[%clk
1:23:23]} 10... b6 {[%clk 1:21:21]} 11. cxd5 {[%clk 1:20:48]} 11... Nxd5 {[%clk
1:21:00]} 12. Bc4 {[%clk 1:19:50]} 12... Be6 {[%clk 1:12:41]} 13. Bb5 {[%clk
0:54:25]} 13... Rc8 {[%clk 1:07:52]} 14. Re1 {[%clk 0:53:22]} 14... Na5 {[%clk
1:04:07]} 15. Bd2 {[%clk 0:46:59]} 15... Nc4 {[%clk 0:45:44]} 16. Ba6 {[%clk
0:36:49]} 16... Rc7 {[%clk 0:41:54]} 17. Nxd5 {[%clk 0:28:29]} 17... Bxd5 {[%clk
0:35:54]} 18. Bf4 {[%clk 0:28:02]} 18... Nd6 {[%clk 0:35:20]} 19. Ne5 {[%clk
0:26:49]} 19... b5 {[%clk 0:33:58]} 20. a4 {[%clk 0:24:29]} 20... Qa8 {[%clk
0:28:45]} 21. axb5 {[%clk 0:18:47]} 21... Bxg2 {[%clk 0:28:28]} 22. b6 {[%clk
0:11:45]} 22... Bxh3 {[%clk 0:27:45]} 23. d5 {[%clk 0:11:36]} 23... axb6 {[%clk
0:27:20]} 24. Nc6 {[%clk 0:11:29]} 24... Rxc6 {[%clk 0:26:50]} 25. Bf1 {[%clk
0:11:13]} 25... Qc8 {[%clk 0:24:05]} 26. Bxh3 {[%clk 0:11:03]} 26... Qxh3 {[%clk
0:24:29]} 27. dxc6 {[%clk 0:11:17]} 27... Bxb2 {[%clk 0:18:13]} 28. Rb1 {[%clk
0:04:55]} 28... Nf5 {[%clk 0:17:42]} 29. Rxb2 {[%clk 0:04:12]} 29... Nh4 {[%clk
0:18:02]} 30. f3 {[%clk 0:04:36]} 30... Nxf3+ {[%clk 0:18:05]} 31. Kf2 {[%clk
0:05:04]} 31... Nxe1 {[%clk 0:17:49]} 32. Kxe1 {[%clk 0:03:44]} 32... Qh1+
{[%clk 0:17:10]} 33. Ke2 {[%clk 0:04:10]} 33... Qg2+ {[%clk 0:17:22]} 34. Ke3
{[%clk 0:04:21]} 34... Qxb2 {[%clk 0:17:36]} 35. c7 {[%clk 0:04:48]} 35... e5
{[%clk 0:17:19]} 36. Bh6 {[%clk 0:04:29]} 36... Qc3+ {[%clk 0:16:39]} 0-1

[Variant "Standard"]
[Site "Europe Echecs"]

[Event "Sunway Sitges Chess Festival"]
[Date "2024.12.21"]
[White "Shukhman, Anna"]
[Black "Liu, Xiangyi"]
[WhiteElo "2245"]
[BlackElo "2372"]
[Round "7.15"]
[Result "0-1"]
[TimeControl "40/5400+30:1800+30"]

1. e4 {[%clk 1:30:58]} 1... e6 {[%clk 1:20:29]} 2. d4 {[%clk 1:31:23]} 2... d5
{[%clk 1:20:54]} 3. Nc3 {[%clk 1:31:51]} 3... h6 {[%clk 1:14:05]} 4. Bd3 {[%clk
1:25:03]} 4... Nc6 {[%clk 1:21:37]} 5. Nf3 {[%clk 1:24:11]} 5... Nb4 {[%clk
1:06:14]} 6. Be2 {[%clk 1:22:32]} 6... Nf6 {[%clk 1:21:36]} 7. e5 {[%clk
1:06:59]} 7... Ne4 {[%clk 1:22:04]} 8. a3 {[%clk 1:06:22]} 8... Nxc3 {[%clk
1:22:22]} 9. bxc3 {[%clk 1:06:48]} 9... Nc6 {[%clk 1:16:47]} 10. a4 {[%clk
1:01:06]} 10... Na5 {[%clk 1:22:57]} 11. Nd2 {[%clk 0:57:38]} 11... c5 {[%clk
1:21:59]} 12. f4 {[%clk 0:49:14]} 12... Bd7 {[%clk 1:12:31]} 13. O-O {[%clk
0:51:25]} 13... Qc7 {[%clk 1:10:29]} 14. Nf3 {[%clk 0:46:55]} 14... O-O-O {[%clk
1:04:08]} 15. Qe1 {[%clk 0:42:34]} 15... Kb8 {[%clk 0:58:14]} 16. Bd3 {[%clk
0:24:04]} 16... Nc4 {[%clk 0:41:15]} 17. Bxc4 {[%clk 0:22:36]} 17... dxc4 {[%clk
0:43:16]} 18. dxc5 {[%clk 0:12:03]} 18... Bc6 {[%clk 0:32:59]} 19. Nd4 {[%clk
0:07:44]} 19... g6 {[%clk 0:21:22]} 20. Ba3 {[%clk 0:03:42]} 20... Rd5 {[%clk
0:18:26]} 21. Qe2 {[%clk 0:02:11]} 21... Bxc5 {[%clk 0:23:51]} 22. Qxc4 {[%clk
0:00:45]} 22... Bd7 {[%clk 0:23:32]} 23. Qb3 {[%clk 0:-6:-15]} 23... Rc8 {[%clk
0:18:41]} 24. Bxc5 {[%clk 0:07:01]} 24... Rxc5 {[%clk 0:18:05]} 25. Ne2 {[%clk
0:07:12]} 25... Bc6 {[%clk 0:15:37]} 26. Rf2 {[%clk 0:05:05]} 26... Bd5 {[%clk
0:12:07]} 27. Qa3 {[%clk 0:03:19]} 27... Rc4 {[%clk 0:12:38]} 28. Rb1 {[%clk
0:04:36]} 28... Qc5 {[%clk 0:12:13]} 29. Rb4 {[%clk 0:01:51]} 29... Re4 {[%clk
0:10:58]} 30. Nd4 {[%clk 0:01:08]} 30... a5 {[%clk 0:11:00]} 31. Rb3 {[%clk
0:00:11]} 31... Bxb3 {[%clk 0:11:03]} 32. Qxb3 {[%clk 0:01:08]} 32... Qxc3
{[%clk 0:11:19]} 33. Qxc3 {[%clk 0:01:10]} 33... Rxc3 {[%clk 0:11:46]} 34. Nb5
{[%clk 0:01:38]} 34... Re1+ {[%clk 0:11:38]} 0-1

[Variant "Standard"]
[Site "Europe Echecs"]